bitfinex-derivatives/quotes_BTCF0:USTF0_20241125
["timestamp","ask_amount","ask_price","bid_price","bid_amount"]
[1732499789841,0.051307,97347.0,97346.0,0.19254]
[1732499790044,0.051707,97347.0,97346.0,0.19254]
[1732499790547,0.051707,97347.0,97346.0,0.19574756]
[1732499793159,0.051707,97347.0,97346.0,0.49012678]
[1732499795444,0.051707,97347.0,97346.0,0.49012676]
[1732499796154,0.051707,97347.0,97346.0,0.00320754]
[1732499796457,0.051707,97347.0,97328.0,0.0591]
[1732499796458,0.051311,97340.0,97324.0,0.01840939]
[1732499796648,0.3608,97328.0,97323.0,7.348e-05]
[1732499796843,0.4831662,97328.0,97307.0,0.02052808]
[1732499797047,0.051327,97308.0,97307.0,0.02052808]
[1732499797257,0.051333,97297.0,97296.0,0.0306]
[1732499797749,0.051733,97297.0,97296.0,0.0306]
[1732499797953,0.051733,97297.0,97296.0,0.0306723]
[1732499800348,0.051733,97297.0,97296.0,7.23e-05]
[1732499800546,0.051733,97297.0,97289.0,0.00154164]
[1732499800547,0.051337,97290.0,97289.0,0.00154164]
[1732499800852,0.051737,97290.0,97289.0,0.00154164]
[1732499801550,0.051737,97290.0,97289.0,0.00166911]
[1732499802554,0.412537,97290.0,97289.0,0.00166911]
[1732499804359,0.412537,97290.0,97289.0,3.476e-05]
[1732499805959,0.3612,97290.0,97289.0,3.476e-05]
[1732499806859,0.412537,97290.0,97289.0,3.476e-05]
[1732499811352,0.051347,97270.0,97262.0,0.16094217]
[1732499811548,0.412147,97270.0,97262.0,0.16094217]
[1732499811759,0.412547,97270.0,97262.0,0.16094217]
[1732499811961,0.412547,97270.0,97269.0,0.08343265]
[1732499812357,0.412547,97270.0,97269.0,0.08356038]
[1732499813958,0.051747,97270.0,97269.0,0.08356038]
[1732499815158,0.051747,97270.0,97269.0,0.06542773]
[1732499815549,0.051747,97270.0,97269.0,0.03292773]
[1732499815754,0.051747,97270.0,97269.0,0.00012773]
[1732499817262,0.211187,97270.0,97269.0,0.00012773]
[1732499823163,0.211187,97270.0,97269.0,0.00333871]
[1732499823756,0.211187,97270.0,97269.0,0.00012773]
[1732499824150,0.211187,97270.0,97269.0,0.00847659]
[1732499824356,0.211187,97270.0,97269.0,0.00043135]
[1732499825164,0.211187,97270.0,97269.0,0.00685363]
[1732499827455,0.211187,97270.0,97265.0,0.00010355]
[1732499827765,0.53402795,97266.0,97265.0,0.00010355]
[1732499828460,0.41255,97266.0,97265.0,0.00010355]
[1732499833161,0.15245775,97270.0,97265.0,0.00010355]
[1732499833463,0.051348,97269.0,97268.0,0.051348]
[1732499833861,0.05135,97266.0,97265.0,0.00010355]
[1732499834469,0.41215,97266.0,97265.0,0.00524073]
[1732499834771,0.53375646,97266.0,97265.0,0.00524073]
[1732499835061,0.53375646,97266.0,97265.0,0.00010355]
[1732499835062,0.53415646,97266.0,97265.0,0.00010355]
[1732499835265,0.53415646,97266.0,97265.0,0.00524102]
[1732499835266,0.41255,97266.0,97265.0,0.00524102]
[1732499835461,0.53417365,97266.0,97265.0,0.00524102]
[1732499835662,0.41255,97266.0,97265.0,0.00524102]
[1732499835964,0.3706876,97266.0,97265.0,0.00524102]
[1732499836170,0.77093582,97266.0,97262.0,0.00154217]
[1732499836465,0.051751,97263.0,97262.0,0.00154217]
[1732499836765,0.10169682,97263.0,97262.0,0.00475356]
[1732499836962,0.41013682,97263.0,97262.0,0.00321139]
[1732499837864,0.71014021,97263.0,97254.0,7.914e-05]
[1732499838060,0.412155,97255.0,97254.0,7.914e-05]
[1732499838266,0.412155,97255.0,97248.0,0.0308]
[1732499838267,0.051359,97249.0,97248.0,0.0308]
[1732499838463,0.412159,97249.0,97248.0,0.0308]
[1732499838670,0.77099288,97249.0,97248.0,0.0308]
[1732499839669,0.721039,97249.0,97248.0,0.0308]
[1732499839872,0.412559,97249.0,97248.0,0.0308]
[1732499840064,0.61448918,97249.0,97248.0,0.0308]
[1732499840268,0.56453479,97249.0,97248.0,0.0308]
[1732499840572,0.56455912,97249.0,97248.0,0.0308]
[1732499841074,0.412559,97249.0,97248.0,0.0308]
[1732499841369,0.571719,97249.0,97248.0,0.0308]
[1732499842163,0.412559,97249.0,97248.0,0.082159]
[1732499843869,0.412559,97249.0,97248.0,0.0308]
[1732499845671,0.53416555,97249.0,97248.0,0.0308]
[1732499845871,0.051759,97249.0,97248.0,0.082159]
[1732499846066,0.0004,97249.0,97248.0,0.082159]
[1732499846271,0.051354,97257.0,97255.0,0.051355]
[1732499846467,0.051355,97256.0,97255.0,0.051355]
[1732499846774,0.14263718,97256.0,97255.0,0.0564926]
[1732499846971,0.14263718,97256.0,97255.0,0.051355]
[1732499847172,0.051355,97256.0,97255.0,0.051355]
[1732499849872,0.051355,97256.0,97255.0,0.05456597]
[1732499851071,0.09128218,97260.0,97255.0,0.00321097]
[1732499851272,0.09128218,97260.0,97259.0,0.051353]
[1732499851463,0.051352,97261.0,97259.0,0.051353]
[1732499851464,0.14263418,97261.0,97259.0,0.05456397]
[1732499851673,0.051352,97261.0,97260.0,0.00321097]
[1732499851976,0.14263418,97261.0,97260.0,0.06941097]
[1732499852180,0.051352,97261.0,97260.0,0.06941097]
[1732499853575,0.051352,97261.0,97260.0,0.06941094]
[1732499853775,0.09128218,97263.0,97260.0,0.06941094]
[1732499853974,0.04128218,97267.0,97261.0,0.00321094]
[1732499854173,0.15213398,97280.0,97262.0,0.00321094]
[1732499854174,0.04128218,97275.0,97262.0,0.00321094]
[1732499854382,0.28086718,97283.0,97263.0,0.00321094]
[1732499854578,0.36216,97286.0,97262.0,0.0008]
[1732499854579,0.02106928,97278.0,97274.0,0.0008]
[1732499854876,0.051344,97277.0,97275.0,0.00321041]
[1732499855079,0.051344,97277.0,97275.0,0.051345]
[1732499855277,0.051341,97283.0,97274.0,0.0008]
[1732499855480,0.3608,97286.0,97271.0,0.3941]
[1732499855481,0.051341,97282.0,97280.0,0.051342]
[1732499855782,0.051341,97282.0,97281.0,0.032]
[1732499856480,0.051341,97282.0,97281.0,0.083342]
[1732499861780,0.38173844,97286.0,97281.0,0.083342]
[1732499862286,0.43307744,97286.0,97285.0,0.0008]
[1732499874787,0.412139,97286.0,97285.0,0.0008]
[1732499875883,0.3608,97286.0,97285.0,0.0008]
[1732499876091,0.3608,97286.0,97285.0,0.05214]
[1732499876495,0.1588,97292.0,97291.0,0.051336]
[1732499876789,0.051334,97295.0,97293.0,0.051335]
[1732499876993,0.51956,97297.0,97291.0,0.0008]
[1732499877202,0.51956,97297.0,97294.0,0.0008]
[1732499877383,0.51956,97297.0,97291.0,0.051336]
[1732499877588,0.051336,97292.0,97291.0,0.051336]
[1732499877791,0.051736,97292.0,97291.0,0.051336]
[1732499879290,0.0004,97292.0,97291.0,0.051336]
[1732499882496,0.0004,97292.0,97291.0,0.05454585]
[1732499883084,0.15253398,97292.0,97291.0,0.05454585]
[1732499883488,0.0004,97292.0,97291.0,0.05454585]
[1732499883892,0.0004,97292.0,97291.0,0.05968145]
[1732499884095,0.12200906,97293.0,97291.0,0.05968145]
[1732499884299,0.15213398,97298.0,97297.0,0.051335]
[1732499884495,0.15213398,97300.0,97299.0,0.051334]
[1732499884692,0.15213398,97300.0,97299.0,0.05466734]
[1732499884999,0.15213398,97302.0,97301.0,0.051332]
[1732499885298,0.15251215,97304.0,97301.0,0.00440985]
[1732499885500,0.15251215,97305.0,97304.0,0.051331]
[1732499885693,0.15251215,97305.0,97304.0,0.05454085]
[1732499885894,0.15251215,97305.0,97304.0,0.05574085]
[1732499886289,0.15251215,97306.0,97304.0,0.05574085]
[1732499886495,0.15262022,97307.0,97306.0,0.05133]
[1732499887000,0.15262022,97307.0,97306.0,0.05253]
[1732499887196,0.00010807,97307.0,97306.0,0.05253]
[1732499887393,0.00010807,97307.0,97306.0,0.05573936]
[1732499888295,0.00010807,97307.0,97306.0,0.05253]
[1732499888692,0.00010807,97307.0,97306.0,0.0012]
[1732499888693,0.05143707,97307.0,97306.0,0.0012]
[1732499889389,0.10135836,97307.0,97306.0,0.0001145]
[1732499890903,0.05143707,97307.0,97306.0,0.0001145]
[1732499891218,0.051333,97300.0,97299.0,0.00132349]
[1732499891396,0.570893,97300.0,97299.0,0.00132349]
[1732499891710,0.570893,97300.0,97275.0,0.30743337]
[1732499891711,0.82828,97300.0,97277.0,0.24572821]
[1732499892000,0.82828,97300.0,97264.0,0.52768005]
[1732499892001,0.32006265,97278.0,97269.0,0.051349]
[1732499892202,0.32126265,97278.0,97265.0,0.24572821]
[1732499892398,0.32126265,97278.0,97259.0,0.24727038]
[1732499892399,0.3608,97266.0,97259.0,0.24727038]
[1732499892594,0.3608,97264.0,97259.0,0.00154217]
[1732499892799,0.3608,97264.0,97260.0,0.00011301]
[1732499892800,0.051354,97261.0,97260.0,0.00011301]
[1732499897803,0.3608,97264.0,97263.0,0.051353]
[1732499897995,0.051353,97262.0,97260.0,0.00011301]
[1732499898300,0.0012,97261.0,97260.0,0.00011301]
[1732499899107,0.30964,97261.0,97260.0,0.00011301]
[1732499899303,0.051362,97245.0,97244.0,0.0321]
[1732499899498,0.412162,97245.0,97244.0,0.0321]
[1732499899708,0.413362,97245.0,97244.0,0.0321]
[1732499900203,0.413362,97245.0,97244.0,0.03221227]
[1732499902403,0.362,97245.0,97244.0,0.03221227]
[1732499902603,0.0012,97245.0,97244.0,0.03221227]
[1732499905309,0.0012,97245.0,97244.0,0.34073227]
[1732499906308,0.02075181,97264.0,97244.0,0.34073227]
[1732499906309,0.02075181,97264.0,97246.0,0.102724]
[1732499906616,0.051352,97265.0,97250.0,0.07095819]
[1732499906811,0.051353,97263.0,97261.0,0.051353]
[1732499907115,0.051353,97263.0,97262.0,0.0304]
[1732499907807,0.051353,97263.0,97251.0,0.051359]
[1732499908014,0.3608,97258.0,97250.0,0.051359]
[1732499908209,0.3608,97258.0,97245.0,0.0305]
[1732499908210,0.0004,97252.0,97251.0,0.051359]
[1732499911711,0.0004,97252.0,97251.0,0.412159]
[1732499913618,0.0004,97252.0,97251.0,0.720639]
[1732499914217,0.0004,97252.0,97251.0,0.412159]
[1732499914716,0.3612,97252.0,97251.0,0.051359]
[1732499914917,0.3612,97252.0,97251.0,0.05456967]
[1732499915113,0.3612,97252.0,97251.0,0.051359]
[1732499917123,0.0004,97252.0,97251.0,0.051359]
[1732499918423,0.0004,97252.0,97251.0,0.05457012]
[1732499919012,0.0004,97252.0,97251.0,0.051359]
[1732499919216,0.0004,97252.0,97251.0,0.00321113]
[1732499920824,0.0004,97252.0,97251.0,0.05457013]
[1732499921417,0.0004,97252.0,97251.0,0.05970802]
[1732499923613,0.0004,97252.0,97251.0,0.34900967]
[1732499924916,0.051353,97262.0,97251.0,0.29765067]
[1732499925120,0.051353,97262.0,97249.0,0.72871689]
[1732499925121,0.051353,97262.0,97259.0,0.24618216]
[1732499925321,0.3608,97263.0,97262.0,0.051353]
[1732499925522,0.3608,97263.0,97262.0,0.05970202]
[1732499925723,0.051351,97266.0,97265.0,0.051351]
[1732499925915,0.051351,97266.0,97265.0,0.05456213]
[1732499926220,0.051351,97266.0,97265.0,0.05496213]
[1732499927320,0.051351,97266.0,97265.0,0.051751]
[1732499927517,0.051351,97266.0,97265.0,0.23954382]
[1732499927818,0.051351,97266.0,97265.0,0.05496174]
[1732499928012,0.051351,97266.0,97265.0,0.23954666]
[1732499928216,0.051349,97271.0,97268.0,0.05135]
[1732499928420,0.3608,97273.0,97269.0,0.05455974]
[1732499928717,0.051349,97271.0,97269.0,0.051349]
[1732499928917,0.051349,97271.0,97270.0,0.0032108]
[1732499932622,0.051349,97271.0,97270.0,0.00321075]
[1732499932828,0.051349,97271.0,97269.0,0.2359775]
[1732499933130,0.051349,97271.0,97270.0,0.18787358]
[1732499933314,0.051349,97271.0,97270.0,0.00321075]
[1732499935426,0.051349,97271.0,97269.0,0.051349]
[1732499935621,0.051349,97271.0,97270.0,0.00321078]
[1732499937317,0.051349,97271.0,97270.0,0.05455978]
[1732499937721,0.3608,97273.0,97272.0,0.051348]
[1732499937926,0.3608,97273.0,97272.0,0.05455878]
[1732499940235,0.3608,97273.0,97272.0,0.05455852]
[1732499942335,0.3608,97273.0,97272.0,0.23914274]
[1732499942533,0.3608,97273.0,97272.0,0.23913297]
[1732499943032,0.3608,97273.0,97272.0,0.051348]
[1732499945836,0.412147,97273.0,97272.0,0.051348]
[1732499946036,0.412147,97273.0,97272.0,0.23592245]
[1732499946436,0.412147,97273.0,97272.0,0.051348]
[1732499946634,0.412147,97273.0,97272.0,0.23592245]
[1732499946837,0.412147,97273.0,97272.0,0.051348]
[1732499948644,0.412147,97273.0,97272.0,0.23592245]
[1732499949035,0.412147,97273.0,97272.0,0.23913306]
[1732499949234,0.412147,97273.0,97272.0,0.05455861]
[1732499949539,0.412147,97273.0,97272.0,0.23913306]
[1732499950131,0.412147,97273.0,97272.0,0.18778506]
[1732499950342,0.720547,97273.0,97272.0,0.0032109]
[1732499950535,0.051353,97262.0,97261.0,0.18457445]
[1732499950737,0.69226982,97262.0,97261.0,0.00321109]
[1732499950939,0.69266982,97262.0,97261.0,0.00321109]
[1732499951345,0.570513,97262.0,97261.0,0.00321109]
[1732499954952,0.69261917,97262.0,97261.0,0.00321109]
[1732499956048,0.64126617,97262.0,97261.0,0.00321109]
[1732499956849,0.570513,97262.0,97261.0,0.00321109]
[1732499957244,0.69261917,97262.0,97261.0,0.00321109]
[1732499957450,0.69261917,97262.0,97261.0,0.18778554]
[1732499957451,0.0004,97262.0,97261.0,0.18778554]
[1732499957655,0.0004,97262.0,97261.0,0.07164835]
[1732499957843,0.12212258,97279.0,97261.0,0.37937605]
[1732499958042,0.17346658,97279.0,97277.0,0.051345]
[1732499958243,0.051344,97279.0,97278.0,0.00401046]
[1732499958554,0.051344,97279.0,97278.0,0.03401046]
[1732499958760,0.12212258,97284.0,97282.0,0.051342]
[1732499959048,0.02118326,97284.0,97283.0,0.00401046]
[1732499959249,0.412141,97285.0,97283.0,0.00401046]
[1732499959453,0.412141,97285.0,97284.0,0.00321046]
[1732499959646,0.412141,97285.0,97284.0,0.00401046]
[1732499959850,0.43344034,97285.0,97284.0,0.00401046]
[1732499961451,0.43344034,97285.0,97284.0,0.00401032]
[1732499961654,0.43344034,97285.0,97284.0,0.00401036]
[1732499962340,0.15269602,97295.0,97284.0,0.00401036]
[1732499962341,0.12212258,97293.0,97284.0,0.00401036]
[1732499962650,0.051335,97296.0,97292.0,0.0008]
[1732499962845,0.051335,97296.0,97293.0,0.00321036]
[1732499963037,0.051335,97296.0,97295.0,0.0008]
[1732499963250,0.051335,97296.0,97295.0,0.00401036]
[1732499964253,0.051335,97296.0,97295.0,0.0008]
[1732499964452,0.051335,97296.0,97295.0,0.00400986]
[1732499966152,0.051335,97296.0,97295.0,0.0008]
[1732499978455,0.208815,97296.0,97295.0,0.0008]
[1732499980053,0.30027688,97296.0,97295.0,0.0008]
[1732499980256,0.30027688,97296.0,97263.0,0.18460598]
[1732499980257,0.051346,97276.0,97263.0,0.18460598]
[1732499980456,0.051346,97276.0,97258.0,0.0332]
[1732499980457,0.3608,97267.0,97258.0,0.0332]
[1732499980755,0.412155,97259.0,97258.0,0.0332]
[1732499982060,0.412155,97259.0,97257.0,0.03294221]
[1732499982061,0.412155,97259.0,97257.0,0.00154221]
[1732499982568,0.0004,97258.0,97257.0,0.00154221]
[1732499990259,0.051358,97252.0,97251.0,0.0332]
[1732499990665,0.051758,97252.0,97251.0,0.0332]
[1732499994263,0.051758,97252.0,97251.0,0.084559]
[1732500001374,0.051758,97252.0,97251.0,0.0332]
[1732500001563,0.051361,97247.0,97246.0,0.051362]
[1732500001761,0.412161,97247.0,97246.0,0.051362]
[1732500001962,0.412561,97247.0,97246.0,0.051362]
[1732500002671,0.051761,97247.0,97246.0,0.051362]
[1732500003478,0.0004,97247.0,97246.0,0.051362]
[1732500006079,0.3612,97247.0,97246.0,0.051362]
[1732500006566,0.0004,97247.0,97246.0,0.051362]
[1732500006768,0.0004,97247.0,97246.0,0.23596798]
[1732500006962,0.0004,97247.0,97246.0,0.051362]
[1732500007574,0.3608,97259.0,97246.0,0.359842]
[1732500007770,0.3608,97259.0,97258.0,0.051355]
[1732500008078,0.09144337,97262.0,97261.0,0.051354]
[1732500008373,0.051352,97264.0,97263.0,0.051353]
[1732500008769,0.051352,97264.0,97263.0,0.051753]
[1732500009371,0.051352,97264.0,97263.0,0.23619593]
[1732500009578,0.051352,97264.0,97263.0,0.051753]
[1732500009774,0.382958,97267.0,97266.0,0.051351]
[1732500009964,0.38155799,97267.0,97266.0,0.051351]
[1732500010167,0.38155799,97267.0,97266.0,0.05496175]
[1732500010379,0.38155799,97267.0,97266.0,0.30110306]
[1732500010675,0.38155799,97267.0,97266.0,0.05496175]
[1732500012177,0.3608,97267.0,97266.0,0.05496175]
[1732500012378,0.3608,97267.0,97266.0,0.29787483]
[1732500012576,0.051347,97274.0,97267.0,0.05135]
[1732500012777,0.09162024,97277.0,97275.0,0.051346]
[1732500013171,0.09162024,97277.0,97276.0,0.0004]
[1732500013377,0.50376524,97278.0,97276.0,0.0004]
[1732500013781,0.50376524,97278.0,97277.0,0.0004]
[1732500013976,0.52444681,97278.0,97277.0,0.0004]
[1732500014386,0.52444681,97278.0,97277.0,0.051745]
[1732500014577,0.43282657,97278.0,97277.0,0.051745]
[1732500014978,0.52444681,97278.0,97277.0,0.051745]
[1732500015380,0.43282657,97278.0,97277.0,0.051745]
[1732500015689,0.3608,97278.0,97277.0,0.051745]
[1732500015871,0.15708,97283.0,97277.0,0.0004]
[1732500016078,0.45242024,97286.0,97285.0,0.051341]
[1732500016378,0.51349602,97297.0,97289.0,0.051339]
[1732500016379,0.09162024,97293.0,97289.0,0.051339]
[1732500016579,0.15708,97296.0,97285.0,0.0004]
[1732500016580,0.09162024,97294.0,97285.0,0.0004]
[1732500016782,0.051337,97293.0,97292.0,0.0004]
[1732500016978,0.051337,97293.0,97291.0,0.051338]
[1732500017479,0.09162024,97293.0,97288.0,0.1845851]
[1732500017683,0.051339,97289.0,97287.0,0.1845851]
[1732500017888,0.051739,97289.0,97287.0,0.1845851]
[1732500018073,0.051739,97289.0,97288.0,0.1845851]
[1732500018277,0.051739,97289.0,97287.0,0.05134]
[1732500018679,0.0004,97288.0,97287.0,0.05134]
[1732500020185,0.0004,97288.0,97287.0,0.05454994]
[1732500020392,0.0004,97288.0,97287.0,0.05134]
[1732500027290,0.0004,97288.0,97287.0,0.3597]
[1732500027488,0.0004,97289.0,97287.0,0.3597]
[1732500027691,0.09162024,97304.0,97303.0,0.051331]
[1732500027893,0.09172831,97307.0,97305.0,0.05133]
[1732500028097,0.09172831,97307.0,97306.0,0.033]
[1732500028395,0.00010807,97307.0,97306.0,0.03419999]
[1732500034690,0.00010807,97307.0,97306.0,0.39499999]
[1732500037693,0.00010807,97307.0,97306.0,0.70331999]
[1732500037895,0.3608,97327.0,97306.0,0.70331999]
[1732500037896,0.09162024,97339.0,97326.0,0.051319]
[1732500038099,0.02053941,97340.0,97326.0,0.051319]
[1732500038100,0.02053941,97340.0,97338.0,0.051313]
[1732500038396,0.3608,97342.0,97341.0,0.051311]
[1732500038792,0.051305,97353.0,97347.0,0.051308]
[1732500038992,0.051305,97353.0,97341.0,0.36199999]
[1732500039296,0.051305,97353.0,97352.0,0.00119999]
[1732500040796,0.38229536,97354.0,97341.0,0.00119999]
[1732500040999,0.09137132,97345.0,97341.0,0.00119999]
[1732500041898,0.09137132,97346.0,97344.0,0.05131]
[1732500042299,0.12182842,97350.0,97341.0,0.00119999]
[1732500042496,0.09135631,97345.0,97344.0,0.05131]
[1732500043093,0.17313442,97351.0,97344.0,0.05131]
[1732500043094,0.09135631,97346.0,97344.0,0.05131]
[1732500043699,0.09135631,97345.0,97344.0,0.05131]
[1732500044090,0.3608,97346.0,97341.0,0.00119999]
[1732500044291,0.412111,97342.0,97321.0,0.15648]
[1732500044486,0.412111,97342.0,97326.0,0.051319]
[1732500044487,0.14261976,97329.0,97326.0,0.051319]
[1732500044700,0.09130176,97328.0,97326.0,0.051319]
[1732500044901,0.051319,97328.0,97326.0,0.051319]
[1732500045207,0.09130176,97332.0,97330.0,0.051317]
[1732500045397,0.12182842,97336.0,97334.0,0.051315]
[1732500045595,0.36216,97337.0,97324.0,0.3608]
[1732500045596,0.3608,97337.0,97335.0,0.051314]
[1732500045796,0.12182842,97339.0,97335.0,0.051314]
[1732500046006,0.12182842,97339.0,97338.0,0.051313]
[1732500046302,0.12182842,97341.0,97339.0,0.051312]
[1732500046603,0.17314042,97341.0,97340.0,0.0004]
[1732500047396,0.051312,97341.0,97340.0,0.0004]
[1732500048898,0.051312,97341.0,97340.0,0.051712]
[1732500053197,0.051312,97341.0,97340.0,0.0004]
[1732500053597,0.051312,97341.0,97305.0,0.41213]
[1732500053598,0.051319,97327.0,97326.0,0.051319]
[1732500053907,0.412119,97327.0,97326.0,0.051319]
[1732500054201,0.00159999,97327.0,97316.0,0.3608]
[1732500054402,0.051323,97322.0,97321.0,0.051322]
[1732500055599,0.3608,97331.0,97317.0,0.3608]
[1732500055600,0.45220302,97331.0,97317.0,0.3608]
[1732500055798,0.051317,97331.0,97330.0,0.051317]
[1732500055998,0.051317,97331.0,97330.0,0.051717]
[1732500056603,0.07267668,97331.0,97330.0,0.051717]
[1732500057610,0.1947017,97331.0,97330.0,0.051717]
[1732500058012,0.15332502,97334.0,97330.0,0.0004]
[1732500058212,0.0313,97334.0,97333.0,0.051316]
[1732500058403,0.0313,97334.0,97333.0,0.051716]
[1732500058601,0.082615,97334.0,97333.0,0.0004]
[1732500059107,0.443415,97334.0,97333.0,0.0004]
[1732500059306,0.59611102,97334.0,97333.0,0.0004]
[1732500059507,0.49332557,97334.0,97333.0,0.0004]
[1732500062814,0.051329,97307.0,97298.0,0.051334]
[1732500063114,0.207329,97307.0,97292.0,0.051337]
[1732500063322,0.207329,97307.0,97280.0,0.18383563]
[1732500063323,0.051339,97289.0,97284.0,0.18383563]
[1732500063515,0.051339,97289.0,97276.0,0.0004]
[1732500063516,0.568139,97289.0,97288.0,0.00333752]
[1732500063704,1.02910977,97289.0,97276.0,0.0004]
[1732500064011,0.05334499,97277.0,97276.0,0.0004]
[1732500064212,0.15799999,97277.0,97276.0,0.0004]
[1732500064711,0.15799999,97277.0,97276.0,0.00049129]
[1732500066110,0.00199999,97277.0,97276.0,0.00049129]
[1732500066506,0.36279999,97277.0,97276.0,0.00049129]
[1732500073722,0.051357,97255.0,97254.0,0.0312]
[1732500074111,0.05375699,97255.0,97254.0,0.0312]
[1732500074817,0.05375699,97255.0,97254.0,0.03129188]
[1732500075119,0.00239999,97255.0,97254.0,0.03129188]
[1732500075313,0.05375699,97255.0,97254.0,0.03129188]
[1732500076619,0.00239999,97255.0,97254.0,0.03129188]
[1732500082427,0.00239999,97255.0,97254.0,0.03450296]
[1732500082927,0.00239999,97255.0,97254.0,0.08585996]
[1732500085533,0.00239999,97255.0,97254.0,0.08264888]
[1732500085733,0.00239999,97255.0,97254.0,0.08585996]
[1732500086128,0.15568,97276.0,97254.0,0.76027769]
[1732500086327,0.3608,97277.0,97266.0,0.07100416]
[1732500086523,0.05135,97268.0,97267.0,0.03864881]
[1732500086727,0.41215,97268.0,97267.0,0.00321108]
[1732500086928,0.051356,97256.0,97255.0,0.051357]
[1732500087129,0.3608,97268.0,97255.0,0.00834855]
[1732500087437,0.0004,97256.0,97255.0,0.051357]
[1732500087632,0.0004,97256.0,97255.0,0.05970581]
[1732500088140,0.0004,97256.0,97255.0,0.06612793]
[1732500089636,0.0004,97256.0,97255.0,0.06612787]
[1732500090837,0.15568,97275.0,97273.0,0.051347]
[1732500091146,0.051344,97279.0,97274.0,0.40697087]
[1732500091443,0.051344,97279.0,97278.0,0.0004]
[1732500091630,0.051344,97279.0,97278.0,0.01517087]
[1732500092826,0.051344,97279.0,97278.0,0.01516724]
[1732500093032,0.051344,97279.0,97278.0,0.0087467]
[1732500093536,0.27768968,97281.0,97279.0,0.051344]
[1732500093735,0.15568,97281.0,97280.0,0.0083467]
[1732500094030,0.15568,97281.0,97280.0,0.0391467]
[1732500094333,0.12218558,97282.0,97280.0,0.0904907]
[1732500094535,0.02106526,97289.0,97281.0,0.0083467]
[1732500094536,0.09164277,97284.0,97281.0,0.0083467]
[1732500094731,0.09164277,97284.0,97282.0,0.4204897]
[1732500094930,0.09164277,97286.0,97284.0,0.051341]
[1732500095127,8.876e-05,97289.0,97288.0,0.051339]
[1732500095533,8.876e-05,97289.0,97288.0,0.06008495]
[1732500097737,8.876e-05,97289.0,97288.0,0.00874595]
[1732500098425,0.09164111,97289.0,97288.0,0.00874595]
[1732500099241,0.09162219,97289.0,97288.0,0.00874595]
[1732500099426,0.09162219,97289.0,97288.0,0.00360998]
[1732500099627,0.09162219,97289.0,97288.0,0.00874605]
[1732500099833,8.876e-05,97289.0,97288.0,0.00874605]
[1732500100032,0.09162219,97289.0,97288.0,0.00360998]
[1732500100235,8.876e-05,97289.0,97288.0,0.00360998]
[1732500101352,8.876e-05,97289.0,97288.0,0.0004]
[1732500102032,0.15568,97293.0,97292.0,0.051337]
[1732500102542,0.15568,97293.0,97292.0,0.051737]
[1732500102742,0.15568,97293.0,97292.0,0.0004]
[1732500103039,0.94713139,97293.0,97269.0,0.0328]
[1732500103240,0.051349,97270.0,97262.0,0.18411066]
[1732500103431,0.051352,97264.0,97263.0,0.00834657]
[1732500103746,0.412152,97264.0,97263.0,0.00834668]
[1732500104041,0.412152,97264.0,97263.0,0.00321022]
[1732500104341,0.3608,97264.0,97255.0,0.3608]
[1732500104546,0.3608,97264.0,97256.0,0.00321092]
[1732500104731,0.0004,97256.0,97255.0,0.3608]
[1732500104932,0.0004,97256.0,97255.0,0.41536791]
[1732500107737,0.0004,97256.0,97255.0,0.36401091]
[1732500108442,0.0004,97256.0,97255.0,0.3608]
[1732500108642,0.0004,97256.0,97255.0,0.36401107]
[1732500110139,0.0004,97256.0,97255.0,0.00321107]
[1732500110344,0.0004,97256.0,97254.0,9.188e-05]
[1732500110345,0.051357,97255.0,97254.0,9.188e-05]
[1732500110645,0.207037,97255.0,97254.0,9.188e-05]
[1732500111348,0.15568,97255.0,97254.0,9.188e-05]
[1732500111641,0.0004,97255.0,97254.0,0.00330307]
[1732500112941,0.0004,97255.0,97254.0,0.30857188]
[1732500113145,0.0004,97255.0,97254.0,0.34198291]
[1732500113745,0.0004,97255.0,97254.0,0.52609357]
[1732500113939,0.0004,97255.0,97254.0,0.34198291]
[1732500114843,0.0004,97270.0,97254.0,0.34198291]
[1732500114844,0.0004,97270.0,97269.0,0.051349]
[1732500115246,0.0004,97270.0,97269.0,0.051749]
[1732500116043,0.0004,97270.0,97269.0,0.084949]
[1732500117541,0.0004,97270.0,97269.0,0.26914691]
[1732500117943,0.0004,97270.0,97269.0,0.29924691]
[1732500118945,0.0004,97270.0,97269.0,0.115049]
[1732500121047,0.15528,97289.0,97269.0,0.11825916]
[1732500121247,0.051341,97285.0,97283.0,0.051342]
[1732500122249,0.15528,97289.0,97277.0,0.3608]
[1732500122549,0.15528,97289.0,97286.0,0.05134]
[1732500122741,0.53732456,97291.0,97290.0,0.051338]
[1732500122945,0.17652456,97291.0,97290.0,0.051338]
[1732500123144,0.15528,97291.0,97290.0,0.05213801]
[1732500123344,0.00010581,97293.0,97292.0,0.051337]
[1732500123651,0.00010581,97293.0,97292.0,0.05213701]
[1732500126343,0.00010581,97293.0,97292.0,0.08443701]
[1732500126947,0.00010581,97293.0,97292.0,0.26866145]
[1732500127457,0.00010581,97293.0,97292.0,0.08443701]
[1732500129451,0.00010581,97293.0,97292.0,0.39279701]
[1732500129750,0.02160915,97321.0,97320.0,0.051322]
[1732500130145,0.02160915,97321.0,97320.0,0.05212201]
[1732500130345,0.051314,97336.0,97320.0,0.05212201]
[1732500130346,0.051315,97335.0,97320.0,0.00080001]
[1732500130543,0.02143752,97336.0,97334.0,9.088e-05]
[1732500130751,8.431e-05,97339.0,97338.0,0.051313]
[1732500131157,8.431e-05,97339.0,97338.0,0.05211301]
[1732500132051,0.02160627,97345.0,97338.0,0.05211301]
[1732500132248,0.15528,97347.0,97338.0,0.05211301]
[1732500132249,0.051312,97341.0,97340.0,0.051312]
[1732500132447,0.206588,97347.0,97344.0,0.00080001]
[1732500132651,0.60892015,97348.0,97344.0,2.424e-05]
[1732500132851,0.051309,97346.0,97343.0,0.05131]
[1732500135147,0.05131,97344.0,97337.0,0.051313]
[1732500135350,8.214e-05,97347.0,97337.0,0.051313]
[1732500135558,0.0004,97338.0,97337.0,0.051313]
[1732500140158,0.0004,97338.0,97337.0,0.0724899]
[1732500140854,8.214e-05,97347.0,97346.0,0.051309]
[1732500141155,8.214e-05,97347.0,97346.0,0.41253323]